Cogmind - Beta 13 @@@ ROGUE MODE // 2024.04.06 @ 17:14:49 Player: Toa of Guts Result: Destroyed by H-66 Slayer with Heavy Assault Rifle Performance ------------- Evolutions (4) 2000 Regions Visited (6) 1200 Robots Destroyed (31) 155 Value Destroyed (1066) 1066 Prototype IDs (5) 100 Alien Tech Used (0) 0 Bonus (500) 500 TOTAL SCORE: 5021 Bonus ------- Entered DSFs 500 Cogmind --------- Core Integrity 0/850 Matter 3/300 Energy 83/100 System Corruption 3% Temperature Cool (0) Movement Core (50) Location -6/Factory Parts ------- > --- POWER (1) -------- (None) > --- PROPULSION (4) --- (None) > --- UTILITY (6) ------ Improved Trap Scanner Enhanced Optical Array Improved Signal Interpreter System Shield > --- WEAPON (4) ------- (None) > --- INVENTORY (5) ---- Improved Carbon-fiber Leg Improved Carbon-fiber Leg Improved Carbon-fiber Leg Advanced Heat Sink High-powered Shotgun Peak State ------------ > --- POWER ------------ Light Fission Core > --- PROPULSION ------- Light Armored Exoskeleton Light Armored Exoskeleton > --- UTILITY ---------- Advanced Sensor Array Improved Signal Interpreter Improved Heavy Armor Plating Hacking Suite System Shield > --- WEAPON ----------- Gatling Laser Thermic Laser High-powered Shotgun Heavy Machine Gun > --- INVENTORY -------- Micro Nuclear Core Power Amplifier Advanced Heat Sink Medium Reactive Plating Scatter Rocket Array [Rating: 64] Favorites ----------- Power Cooled Ion Engine Engine Cooled Ion Engine Power Core Light Fission Core Propulsion Airjet Leg Improved Aluminum Leg Wheel Compact Wheel Hover Unit Airjet Utility Small Storage Unit Device Advanced Sensor Array Storage Small Storage Unit Processor Improved Signal Interpreter Hackware Hacking Suite Protection Light Armor Plating Weapon Improved Medium Laser Energy Gun Improved Medium Laser Ballistic Gun Heavy Machine Gun Launcher Scatter Rocket Array Slashing Weapon Mining Claw Build | -11 -10 -9 -8 -7 -7 -6 ------- Run | Yrd Mat Mat Mat Fac DSF Fac Slots Evolved 8 | . . 2 2 2 . 2 Power . | . . . . . . . Propulsion 2 | . . 1 1 . . . Utility 4 | . . 1 1 . . 2 Weapon 2 | . . . . 2 . . Parts Attached 64 | 7 7 8 12 . 7 23 Power 7 | 1 1 1 . . 1 3 Engine 4 | 1 1 1 . . 1 . Core 3 | . . . . . . 3 Reactor . | . . . . . . . Propulsion 15 | 3 2 1 5 . 1 3 Treads . | . . . . . . . Leg 9 | 2 2 1 1 . . 3 Wheel 2 | 1 . . . . 1 . Hover 4 | . . . 4 . . . Flight . | . . . . . . . Utility 20 | 1 2 1 4 . 3 9 Device 9 | . 1 . 3 . 3 2 Storage 2 | 1 . . . . . 1 Processor 4 | . 1 . . . . 3 Hackware 2 | . . . . . . 2 Protection 3 | . . 1 1 . . 1 Artifact . | . . . . . . . Weapon 22 | 2 2 5 3 . 2 8 Energy Gun 12 | 1 1 5 . . 2 3 Energy Cannon . | . . . . . . . Ballistic Gun 6 | 1 1 . 2 . . 2 Ballistic Cannon . | . . . . . . . Launcher 3 | . . . . . . 3 Special Weapon . | . . . . . . . Impact Weapon . | . . . . . . . Slashing Weapon 1 | . . . 1 . . . Piercing Weapon . | . . . . . . . Special Melee Weapon . | . . . . . . . Unidentified Prototypes 5 | . . 2 1 . . 2 Parts Lost 23 | . . 2 4 . 5 12 Power 2 | . . . . . . 2 Propulsion 7 | . . . 3 . 2 2 Utility 8 | . . 1 1 . 3 3 Weapon 6 | . . 1 . . . 5 Highest Loss Streak 7 | . . 1 4 . 3 7 To Critical Strikes . | . . . . . . . Average Slot Usage (%) 78 | . 99 99 97 53 52 56 Engine 5 | . 14 11 9 7 5 . Core 1 | . . . . . . 3 Leg 14 | . 28 33 2 . . 10 Hover 7 | . . . 32 7 1 . Device 9 | . 6 11 18 15 16 5 Storage 6 | . 14 11 9 7 4 . Processor 3 | . 7 . . . . 6 Hackware 4 | . . . . . . 9 Protection 4 | . . 10 7 . . 3 Energy Gun 13 | . 21 21 14 7 16 7 Ballistic Gun 4 | . 6 . 2 7 4 7 Naked Turns 8 | . . . . . 8 . Heaviest Build 39 | 12 17 23 25 22 29 39 Greatest Support 60 | 20 26 39 52 8 16 60 Greatest Overweight (x) 9 | 1 . . 6 2 9 5 Average Overweight (x) . | . . . . 2 . . Largest Inventory Capacity 10 | 8 8 8 8 8 8 10 Average Capacity 6 | 7 8 8 8 8 7 5 Most Carried 8 | 6 8 8 8 8 7 5 Average Carried 5 | 3 7 7 7 8 4 3 Final Capacity 8 | 8 8 8 8 8 5 5 Final Carried 8 | 6 8 8 8 8 5 5 Class Distribution -------------------- 72% | Mutant 19% | Hacker-Skirmisher 6% | Hacker-Mutant Dominant Class ---------------- Mutant | -10/Materials Mutant | -9/Materials Mutant | -8/Materials Mutant | -7/Factory Tank | -7/DSF Hacker-Skirmisher | -6/Factory Resources | -11 -10 -9 -8 -7 -7 -6 ----------- Run | Yrd Mat Mat Mat Fac DSF Fac Matter Collected 655 | 225 47 151 162 . . 70 Remotely . | . . . . . . . Salvage Created 1086 | . 47 475 276 . 43 245 Parts 64 | . 5 29 15 . 5 10 Haulers Intercepted 1 | . . 1 . . . . Recyclers Shooed . | . . . . . . . Parts Field Recycled . | . . . . . . . Retrieved Matter . | . . . . . . . Parts Self-Destructed . | . . . . . . . Prevented . | . . . . . . . Kills | -11 -10 -9 -8 -7 -7 -6 ------- Run | Yrd Mat Mat Mat Fac DSF Fac Combat Hostiles Destroyed 28 | . 3 9 5 . 1 10 Guns 20 | . 3 9 4 . 1 3 AOE 6 | . . . . . . 6 Classes Destroyed 9 | . 1 3 3 . 1 1 Builder 1 | . . . 1 . . . Hauler 1 | . . 1 . . . . Recycler 1 | . . 1 . . . . Swarmer 11 | . 3 4 . . . 4 Grunt 4 | . . . 2 . . 2 Sentry 8 | . . 5 2 . . 1 Specialist 1 | . . . . . 1 . Hunter 1 | . . . 1 . . . Programmer 3 | . . . . . . 3 Best Kill Streak 6 | . 3 3 2 . 1 6 Combat Bots Only 6 | . 3 3 2 . 1 6 Max Kills in Single Turn 4 | . 1 1 1 . 1 4 Gunslinging . | . . . . . . . Exploded 4 | . . . . . . 4 Melee . | . . . . . . . Uniques/NPCs Destroyed . | . . . . . . . Combat | -11 -10 -9 -8 -7 -7 -6 -------- Run | Yrd Mat Mat Mat Fac DSF Fac Hostile Shots Fired 586 | . 23 83 70 . 28 382 Missed 211 | . 2 28 28 . 8 145 Damage Taken 5716 | . 170 593 555 . 494 3904 Core 1354 | . 45 100 63 . 294 852 Absorbed by Shields . | . . . . . . . Core Remaining (%) 80 | 100 82 75 88 . 58 . Volleys Fired 82 | . 8 31 24 . 3 16 Largest 4 | . 2 2 2 . 4 4 Hottest 220 | . 60 112 112 . 193 220 Shots Fired 165 | . 16 58 48 . 12 31 Gun 163 | . 16 58 48 . 12 29 Cannon . | . . . . . . . Launcher 2 | . . . . . . 2 Special . | . . . . . . . Kinetic 36 | . 8 . 13 . 3 12 Thermal 113 | . 8 44 35 . 9 17 Explosive 2 | . . . . . . 2 Electromagnetic 14 | . . 14 . . . . Robot Hit Streak 15 | . 4 8 15 . 7 6 Robot Miss Streak 6 | . 3 2 1 . 1 6 Penetration Max . | . . . . . . . Secondary Targets 5 | . 1 3 1 . . . Max Gunslinging Chain 1 | . 1 1 1 . . . Shots Hit Robots 112 | . 9 38 37 . 8 20 Core Hits 64 | . 4 16 10 . 2 32 Critical Kills . | . . . . . . . Critical Parts Destroyed 1 | . 1 . . . . . Critical Strikes 8 | . 1 3 3 . . 1 Burn 6 | . . 2 3 . . 1 Destroy 1 | . 1 . . . . . Corrupt 1 | . . 1 . . . . Melee Attacks 1 | . . . 1 . . . Impact . | . . . . . . . Slashing 1 | . . . 1 . . . Piercing . | . . . . . . . Sneak Attacks . | . . . . . . . Combat Hostiles . | . . . . . . . Follow-up Attacks . | . . . . . . . Damage Inflicted 2519 | . 83 557 633 . 140 1106 Guns 1897 | . 83 557 633 . 140 484 Cannons . | . . . . . . . Explosions 603 | . . . . . . 603 Melee . | . . . . . . . Ramming 19 | . . . . . . 19 Kinetic 379 | . 39 . 191 . 37 112 Thermal 1399 | . 44 438 442 . 103 372 Explosive 603 | . . . . . . 603 Electromagnetic 119 | . . 119 . . . . Impact . | . . . . . . . Slashing . | . . . . . . . Piercing . | . . . . . . . Highest Corruption 4 | . 4 . . . . 3 Average Corruption 2 | . 2 . . . . 2 Corruption Purged . | . . . . . . . Corruption Blocked . | . . . . . . . Effects 2 | . . . . . . 2 Matter Fused 1 | . . . . . . 1 Data Loss (minor) 1 | . . . . . . 1 Overload Shots . | . . . . . . . Overflow Damage 19 | . . . . . . 19 Projectiles . | . . . . . . . Explosions 19 | . . . . . . 19 Melee . | . . . . . . . Knockbacks . | . . . . . . . Impact . | . . . . . . . Kinetic . | . . . . . . . Secondary . | . . . . . . . Self-Inflicted Damage 333 | . . . . . . 333 Shots 17 | . . . . . . 17 Rammed 1 | . . . . . . 1 Targets Rammed 6 | . . . . . . 6 Kicked 5 | . . . . . . 5 Crushed . | . . . . . . . Highest Temperature 294 | . 60 196 96 . . 294 Average Temperature 78 | . 32 84 35 . . 102 Received Heat Transfer 700 | . . 123 207 . . 370 Siege Activations . | . . . . . . . Robots Corrupted . | . . . . . . . Combat Hostiles . | . . . . . . . Parts Fried . | . . . . . . . Impact Corruptions . | . . . . . . . Robots Melted 2 | . . . 1 . . 1 Combat Hostiles 2 | . . . 1 . . 1 Parts Melted 9 | . . 1 4 . . 4 Heat Transferred 3532 | . 100 1101 1184 . 222 925 Parts Sabotaged . | . . . . . . . Parts Stolen . | . . . . . . . Parts Stripped . | . . . . . . . Power Chain Reactions . | . . . . . . . Alert | -11 -10 -9 -8 -7 -7 -6 ------- Run | Yrd Mat Mat Mat Fac DSF Fac Peak Influence 306 | . 85 306 251 65 65 257 Initial 65 | . . . 48 65 45 15 Average 88 | . 59 151 124 65 51 61 Maximum Alert Level 1 | . . 1 1 . . 1 Low Security (%) 84 | 100 100 74 76 100 100 85 Level 1 15 | . . 25 23 . . 14 Level 2 . | . . . . . . . Level 3 . | . . . . . . . Level 4 . | . . . . . . . Level 5 . | . . . . . . . High Security . | . . . . . . . Max Security . | . . . . . . . Squads Dispatched 11 | . . 1 1 . 1 8 Investigation 1 | . . . . . . 1 Extermination 3 | . . . . . . 3 Reinforcement 7 | . . 1 1 . 1 4 Assault . | . . . . . . . Garrison . | . . . . . . . Intercept . | . . . . . . . Searches Triggered . | . . . . . . . Construction Impeded . | . . . . . . . Haulers Reinforced . | . . . . . . . Active Scanning Responses . | . . . . . . . Cargo Convoy Interrupts 1 | . . . . . . 1 Stealth | -11 -10 -9 -8 -7 -7 -6 --------- Run | Yrd Mat Mat Mat Fac DSF Fac Distress Signals 4 | . . 1 2 . . 1 Communications Jammed . | . . . . . . . Distress Signals . | . . . . . . . Times Spotted 74 | . 7 17 19 . 4 27 Peak Tracking Total 9 | . 3 6 8 . 3 9 Tactical Retreats 9 | . 1 . 3 . 1 4 Traps | -11 -10 -9 -8 -7 -7 -6 ------- Run | Yrd Mat Mat Mat Fac DSF Fac Traps Triggered 6 | . 3 1 . . 1 1 Indirectly . | . . . . . . . Trap Hack Attempts . | . . . . . . . Triggered . | . . . . . . . Disarmed . | . . . . . . . Reprogrammed . | . . . . . . . Reused . | . . . . . . . Traps Extracted . | . . . . . . . Installed . | . . . . . . . Triggered 1 | . . . . . . 1 Machines | -11 -10 -9 -8 -7 -7 -6 ---------- Run | Yrd Mat Mat Mat Fac DSF Fac Machines Disabled 2 | . . 1 . . . 1 Max in Single Turn 1 | . . 1 . . . 1 Machines Repaired . | . . . . . . . Machines Dismantled . | . . . . . . . Machines Sabotaged . | . . . . . . . Overloaded Fab Kills . | . . . . . . . Hacking | -11 -10 -9 -8 -7 -7 -6 --------- Run | Yrd Mat Mat Mat Fac DSF Fac Machines Accessed 17 | . 2 3 7 1 . 4 Terminals 12 | . 2 2 6 1 . 1 Fabricators 2 | . . . . . . 2 Repair Stations . | . . . . . . . Recycling Units . | . . . . . . . Scanalyzers 3 | . . 1 1 . . 1 Garrison Access . | . . . . . . . Total Hacks 34 | . 5 7 11 1 . 10 Successful 22 | . 3 6 9 1 . 3 Failed 12 | . 2 1 2 . . 7 Catastrophic 2 | . . . 1 . . 1 Database Lockouts . | . . . . . . . Manual 14 | . 3 2 7 . . 2 Terminals 20 | . 5 4 7 1 . 3 Fabricators 3 | . . . . . . 3 Repair Stations . | . . . . . . . Recycling Units . | . . . . . . . Scanalyzers 11 | . . 3 4 . . 4 Garrison Access . | . . . . . . . Terminal Hacks 4 | . 1 2 . 1 . . Robot Analysis 1 | . 1 . . . . . Open DSF 1 | . . . . 1 . . Locate Traps 1 | . . 1 . . . . Zone Layout 1 | . . 1 . . . . Fabricator Hacks . | . . . . . . . Repair Station Hacks . | . . . . . . . Recycling Unit Hacks . | . . . . . . . Scanalyzer 8 | . . 2 4 . . 2 Insert Component 4 | . . 1 2 . . 1 Analyze 4 | . . 1 2 . . 1 Garrison Access Hacks . | . . . . . . . Unauthorized Hacks 10 | . 2 2 5 . . 1 Terminals 9 | . 2 2 5 . . . Track 9 | . 2 2 5 . . . Fabricators 1 | . . . . . . 1 Report 1 | . . . . . . 1 Repair Stations . | . . . . . . . Recycling Units . | . . . . . . . Scanalyzers . | . . . . . . . Garrison Access . | . . . . . . . Data Cores Recovered . | . . . . . . . Used . | . . . . . . . Hacking Detections 10 | . 1 3 2 1 . 3 Full Trace Events 1 | . . . . . . 1 Feedback Events . | . . . . . . . Feedback Blocked . | . . . . . . . Robot Schematics Acquired . | . . . . . . . Robots Built . | . . . . . . . Authchips . | . . . . . . . Time . | . . . . . . . Total Robot Build Rating . | . . . . . . . Part Schematics Acquired 4 | . . 1 2 . . 1 Parts Built . | . . . . . . . Authchips . | . . . . . . . Time . | . . . . . . . Total Part Build Rating . | . . . . . . . Parts Repaired . | . . . . . . . Time . | . . . . . . . Parts Recycled . | . . . . . . . Recycled Matter . | . . . . . . . Retrieved Matter . | . . . . . . . Retrieved Components . | . . . . . . . Parts Scanalyzed 4 | . . 1 2 . . 1 Part Schematics Acquired 4 | . . 1 2 . . 1 Parts Damaged . | . . . . . . . Bothacking | -11 -10 -9 -8 -7 -7 -6 ------------ Run | Yrd Mat Mat Mat Fac DSF Fac Used RIF Installer . | . . . . . . . Robots Hacked . | . . . . . . . Non-combat . | . . . . . . . Combat . | . . . . . . . Robot Hacks Applied . | . . . . . . . Relay Couplers Released . | . . . . . . . Fabnet Peak Effective % . | . . . . . . . Robots Rewired . | . . . . . . . Allies Hacked . | . . . . . . . Hacks Repelled . | . . . . . . . Allies | -11 -10 -9 -8 -7 -7 -6 -------- Run | Yrd Mat Mat Mat Fac DSF Fac Total Allies . | . . . . . . . Largest Group . | . . . . . . . Highest-Rated Group . | . . . . . . . Highest-Rated Ally . | . . . . . . . Total Orders . | . . . . . . . Ally Attacks . | . . . . . . . Total Damage . | . . . . . . . Kills . | . . . . . . . Allies Corrupted . | . . . . . . . Allies Melted . | . . . . . . . Intel | -11 -10 -9 -8 -7 -7 -6 ------- Run | Yrd Mat Mat Mat Fac DSF Fac Robot Analysis Total 1 | . 1 . . . . . Derelict Logs Recovered . | . . . . . . . Drone Launches . | . . . . . . . Drone Recoveries . | . . . . . . . Exploration | -11 -10 -9 -8 -7 -7 -6 ------------- Run | Yrd Mat Mat Mat Fac DSF Fac Turns Passed 3021 | 56 400 478 676 20 112 1279 Spaces Moved 2239 | 36 294 257 522 12 75 1043 Core 500 | 2 . . 1 . 59 438 Treads . | . . . . . . . Legs 1217 | 23 294 257 38 . . 605 Wheels 27 | 11 . . . . 16 . Hover 495 | . . . 483 12 . . Flight . | . . . . . . . Fastest Speed 48 | 50 120 120 48 180 50 50 Average Speed 96 | 111 120 120 56 180 93 102 Slowest Speed 500 | 190 120 120 350 180 500 300 Overloaded Moves . | . . . . . . . Propulsion Burnouts . | . . . . . . . Robots Hopped . | . . . . . . . Cave-ins Triggered . | . . . . . . . Exploration Rate (%) 31 | 3 39 31 31 1 83 31 Regions Visited 6 Branch Regions . Pre-discovered Areas . | . . . . . . . Known Exits Taken 1 | . . . . 1 . . Unknown Exits Taken 4 | 1 1 1 1 . . . Scrap Searched . | . . . . . . . Spaces Dug 1 | . . . 1 . . . Terrain Destroyed 16 | . . . 1 . . 15 Melee 1 | . . . 1 . . . Projectile . | . . . . . . . AOE 15 | . . . . . . 15 Terrain Rammed . | . . . . . . . Walls Destroyed . | . . . . . . . Machines Disabled . | . . . . . . . Actions | -11 -10 -9 -8 -7 -7 -6 --------- Run | Yrd Mat Mat Mat Fac DSF Fac Total 2951 | 48 331 372 858 11 115 1216 Wait 471 | . 5 60 287 . 12 107 Move 2233 | 35 293 256 521 11 74 1043 Hop . | . . . . . . . Pick Up 39 | 5 7 8 4 . 4 11 Fast Attach 34 | 7 3 2 8 . 2 12 Attach 18 | . . 3 1 . 4 10 Detach 8 | 1 . 1 . . 4 2 Swap 12 | . 4 3 3 . 1 1 Drop 47 | . 11 8 9 . 11 8 Fire 82 | . 8 31 24 . 3 16 Melee 1 | . . . 1 . . . Ram 1 | . . . . . . 1 Kick 5 | . . . . . . 5 Crush . | . . . . . . . Escape Stasis . | . . . . . . . Rewire . | . . . . . . . Trap . | . . . . . . . Miscellaneous . | . . . . . . . Route ------- -11/Scrapyard -10/Materials (discovered 2 exits: *Mat / [*Min]) -9/Materials (discovered 2 exits: *Mat / [*Min]) -8/Materials -7/Factory -7/DSF -6/Factory (discovered 1 exit: [*Fac]) History --------- Turn | Location | Event 18 | -11/Scrapyard | Discovered new exit (range 16) 57 | -11/Scrapyard | Entered Materials 225 | -10/Materials | Discovered new exit (range 16) 313 | -10/Materials | Build established: Mutant 442 | -10/Materials | Discovered new exit (range 13) 457 | -10/Materials | Entered another Materials area 457 | -9/Materials | Evolved 2 slots: Propulsion x1, Utility x1 856 | -9/Materials | Discovered new exit (range 6) 917 | -9/Materials | Discovered new exit (range 13) 935 | -9/Materials | Entered another Materials area 935 | -8/Materials | Evolved 2 slots: Propulsion x1, Utility x1 1598 | -8/Materials | Discovered new exit (range 8) 1611 | -8/Materials | Entered Factory 1611 | -7/Factory | Evolved 2 slots: Weapon x2 1615 | -7/Factory | Identified exit to DSF 1631 | -7/Factory | Lost 4 parts (3n1u) 1631 | -7/Factory | Entered DSF 1683 | -7/DSF | Additional patrols routed to DSF 1735 | -7/DSF | Discovered new exit (range 16) 1743 | -7/DSF | Entered Factory 1743 | -6/Factory | Evolved 2 slots: Utility x2 1766 | -6/Factory | Lost 3 parts (3u) 1800 | -6/Factory | Found Prototype Launcher 1804 | -6/Factory | Identified Scatter Rocket Array 1995 | -6/Factory | Spotted B-75 Beast 2026 | -6/Factory | Noticed a derelict Sapper rigging charges 2441 | -6/Factory | Build established: Hacker-Skirmisher 2786 | -6/Factory | Lost 5 parts (1p2u2w) 2906 | -6/Factory | Core integrity fell below 50% 2941 | -6/Factory | Lost 7 parts (1p2n1u3w) 2979 | -6/Factory | Cargo convoy interrupted 3013 | -6/Factory | Core integrity fell below 20% 3019 | -6/Factory | Discovered new exit (range 19) 3022 | -6/Factory | Destroyed by H-66 Slayer with Heavy Assault Rifle Last Messages --------------- 02919_ Acquired Enh. Optical Array. 02922_ Acquired Imp. Carbon-fiber Leg. 02924_ System corrupted: Component data lost. 02925_ Acquired Imp. Carbon-fiber Leg. 02926_ O-24 Administrator: "IFF HANDSHAKE FAILED. SECURING TERMINAL." 02936_ ALERT: Hostiles spotted, dispatching reinforcements to Terminal F005. 02943_ Acquired Imp. Trap Scanner. 02968_ >> FABRICATOR: Completed Adv. Actuator Array at (179,146). 02979_ ALERT: Cargo convoy interrupted, initiating access lockdown. 02993_ ALERT: Rogue bot located, Programmers report to Factory Zone 9T. 02994_ System corrupted: Matter fused (-10). 03002_ Acquired Hpw. Shotgun. 03010_ Penetrated by Slug. 03013_ Acquired Unknown Leg. 03013_ Identified Imp. Titanium Leg. 03014_ Slug penetrates Wall. 03015_ Dropped Imp. Titanium Leg. 03019_ EXIT=FOUND 03022_ Slug penetrates Wall. Map ----- +----------------------------------------------------+ | T ?????????????????????????????? | | ##?????????????????????????????????????? | | == #??????????????????????????????????????? | | = #??????????????????????????????????????? | | = ! #??????????????????????????????????????? | | #??????????????????????????????????????? | | #?##????????????###########+#####??????? | | ### +?????????# ??????? | | """ ###+##+####?????????# ???????? | | """ # #??????????# ????????? | | """ # """ [#??????????# ???????????? | | """ # "Y" #??????????# ??????????????? | | # #??????????# #????????????????? | | ####+##+##???####+### h#????????????????? | | ###### #????????????????? | | g #????????????????? | | ### #########"" """ == #????????????????? | | ??##########???????#"" """ =! #????????????????? | | ???????????????????#"" """ =! #????????????????? | | ???????????????????#T """ #????????????????? | | ???????????????????#"" #????????????????? | | ???????????????????#"" #????????????????? | | ???????????????????#"" s ss#????????????????? | | ???????????????????# + ???????????????? | | ??????????????###### # ??????????????? | | ???? < @ # "?????????????? | | ?????????## ########;######+###? ""????????????? | | ???????????????????? ??????????? ????????????? | | ?????????????????? ""???????????? ????????????? | | ???????????????? ] "??????????????????????????? | | ???????????????# ?"??????????????????????????? | | ???????????????# ?"??????????????????????????? | | ???????????????? ?????????????????????????????? | | ???????????????####??????????????????????????????? | | | | | | | | | | | | | | | | | | | | | | | | | | | | | | | | | +----------------------------------------------------+ Best States ------------- Heat Dissipation 75 Coolant Potential 50 Energy Generation 18 Energy Capacity 280 Matter Stores 300 Matter Capacity 300 Sight Range 22 Robot Scan Range 16 Terrain Scan Density 10 Armor Coverage 600 Evasion (%) 63 Target Analysis 5 Offensive Hacking 10 Defensive Hacking 10 Item Schematics ----------------- Signal Interpreter | -9/Materials | Scanalyzed Imp. Medium Laser | -8/Materials | Scanalyzed Transmission Jammer | -8/Materials | Scanalyzed Adv. Sensor Array | -6/Factory | Scanalyzed Robot Schematics ------------------ None Fabricated ------------ Nothing Alien Tech Used ----------------- None Achievements -------------- None Challenges ------------ None Game ------ Seed ExperimentalServoSystem Manual? 0 Play Time 00:55:48 Cumulative 63.7 hours Start 2024.04.06 @ 16:16:57 End 2024.04.06 @ 17:14:49 Sessions 1 Manual Loads 0 Difficulty Rogue Special Mode None Game No. 43 Rogue 43 Adventurer 0 Explorer 0 Win Type - Total 0 Types 0/0/0/0/0/0/0/0/0 Lore% 26 Gallery% 40 Achievement% 27 Wizard Run 0 Options --------- Layout 0 ASCII 0 Keyboard 0 Movement Mouse Keybinds 0 Fullscreen 1 Font 24/X11 Map View 76x50 Zoom Use 0% Tactical HUD 1 Map Filters NONE Filters NONE Steam 1 RUN: 1697da44-299f-49de-8e77-519062f3dc5c